[Event "Titled Tuesday Blitz September 14 2021"]
[White "Demchenko, Anton"]
[Black "Bluebaum, Matthias"]
[WhiteFideId "4160258"]
[BlackFideId "24651516"]
[WhiteElo "2583"]
[BlackElo "2681"]
[Result "0-1"]
[Round "08"]
[TimeControl "180+1"]
[Date "2021.09.15"]
[WhiteClock "0:00:03"]
[BlackClock "0:01:10"]

1. e4 {[%clk 0:03:00]}  e6 {[%clk 0:02:59]} 2. d4 {[%clk 0:03:00]}  d5 {[%clk 0:02:59]} 3. Nc3 {[%clk 0:03:01]}  Nf6 {[%clk 0:03:00]} 4. Bg5 {[%clk 0:03:00]}  h6 {[%clk 0:02:59]} 5. Bxf6 {[%clk 0:02:59]}  Qxf6 {[%clk 0:03:00]} 6. exd5 {[%clk 0:02:58]}  Bb4 {[%clk 0:03:01]} 7. Bb5+ {[%clk 0:02:51]}  Bd7 {[%clk 0:03:00]} 8. Bxd7+ {[%clk 0:02:48]}  Nxd7 {[%clk 0:03:01]} 9. dxe6 {[%clk 0:02:47]}  Qxe6+ {[%clk 0:03:02]} 10. Qe2 {[%clk 0:02:44]}  Bxc3+ {[%clk 0:03:02]} 11. bxc3 {[%clk 0:02:44]}  Qxe2+ {[%clk 0:03:03]} 12. Kxe2 {[%clk 0:02:41]}  O-O-O {[%clk 0:03:04]} 13. Nf3 {[%clk 0:02:37]}  Rhe8+ {[%clk 0:03:02]} 14. Kd1 {[%clk 0:02:24]}  Nf6 {[%clk 0:02:58]} 15. Re1 {[%clk 0:01:52]}  Ne4 {[%clk 0:02:57]} 16. Re3 {[%clk 0:01:42]}  c5 {[%clk 0:02:49]} 17. Ke1 {[%clk 0:00:40]}  Nxc3 {[%clk 0:02:49]} 18. dxc5 {[%clk 0:00:39]}  Kc7 {[%clk 0:02:45]} 19. a3 {[%clk 0:00:29]}  Kc6 {[%clk 0:02:16]} 20. Nd4+ {[%clk 0:00:27]}  Kxc5 {[%clk 0:02:10]} 21. Nb3+ {[%clk 0:00:27]}  Kc6 {[%clk 0:02:03]} 22. Rxe8 {[%clk 0:00:21]}  Rxe8+ {[%clk 0:02:04]} 23. Kd2 {[%clk 0:00:22]}  Ne4+ {[%clk 0:02:02]} 24. Ke3 {[%clk 0:00:22]}  Nc5+ {[%clk 0:01:58]} 25. Kd2 {[%clk 0:00:22]}  Rd8+ {[%clk 0:01:58]} 26. Ke2 {[%clk 0:00:22]}  Ne4 {[%clk 0:01:52]} 27. f3 {[%clk 0:00:22]}  Nc3+ {[%clk 0:01:52]} 28. Ke3 {[%clk 0:00:23]}  Kb5 {[%clk 0:01:40]} 29. h4 {[%clk 0:00:22]}  b6 {[%clk 0:01:39]} 30. Nd4+ {[%clk 0:00:20]}  Kc4 {[%clk 0:01:38]} 31. Nc6 {[%clk 0:00:19]}  Re8+ {[%clk 0:01:34]} 32. Kf4 {[%clk 0:00:19]}  Kc5 {[%clk 0:01:30]} 33. Nb4 {[%clk 0:00:13]}  a5 {[%clk 0:01:21]} 34. Nd3+ {[%clk 0:00:13]}  Kd4 {[%clk 0:01:22]} 35. Kf5 {[%clk 0:00:04]}  Re2 {[%clk 0:01:20]} 36. g4 {[%clk 0:00:04]}  Nd5 {[%clk 0:01:17]} 37. g5 {[%clk 0:00:03]}  Rg2 {[%clk 0:01:10]} 0-1


[Site "https://www.chess.com"]

[Event "Titled Tuesday Blitz September 14 2021"]
[White "Djordjevic, Vuk"]
[Black "Ibrahimli, Murad"]
[WhiteFideId "902098"]
[BlackFideId "13410229"]
[WhiteElo "2463"]
[BlackElo "2109"]
[Result "0-1"]
[Round "08"]
[TimeControl "180+1"]
[Date "2021.09.15"]
[WhiteClock "0:00:02"]
[BlackClock "0:00:19"]

1. d4 {[%clk 0:03:00]}  Nf6 {[%clk 0:02:59]} 2. Bg5 {[%clk 0:03:00]}  Ne4 {[%clk 0:02:58]} 3. Bf4 {[%clk 0:03:00]}  c5 {[%clk 0:02:58]} 4. f3 {[%clk 0:02:55]}  Qa5+ {[%clk 0:02:58]} 5. c3 {[%clk 0:02:54]}  Nf6 {[%clk 0:02:58]} 6. d5 {[%clk 0:02:54]}  Qb6 {[%clk 0:02:46]} 7. Bc1 {[%clk 0:02:53]}  e6 {[%clk 0:02:46]} 8. e4 {[%clk 0:02:53]}  exd5 {[%clk 0:02:38]} 9. exd5 {[%clk 0:02:53]}  Be7 {[%clk 0:02:30]} 10. Na3 {[%clk 0:02:52]}  d6 {[%clk 0:02:26]} 11. Bd3 {[%clk 0:02:48]}  O-O {[%clk 0:02:25]} 12. Nc4 {[%clk 0:02:45]}  Qc7 {[%clk 0:02:25]} 13. Ne3 {[%clk 0:02:46]}  Re8 {[%clk 0:02:23]} 14. Ne2 {[%clk 0:02:45]}  Nbd7 {[%clk 0:02:22]} 15. O-O {[%clk 0:02:45]}  Ne5 {[%clk 0:02:18]} 16. Bc2 {[%clk 0:02:41]}  Bf8 {[%clk 0:02:18]} 17. c4 {[%clk 0:02:36]}  b5 {[%clk 0:02:16]} 18. cxb5 {[%clk 0:02:34]}  a6 {[%clk 0:02:16]} 19. bxa6 {[%clk 0:02:29]}  Bxa6 {[%clk 0:02:17]} 20. Re1 {[%clk 0:02:29]}  g6 {[%clk 0:02:14]} 21. Nc3 {[%clk 0:02:09]}  Bg7 {[%clk 0:02:09]} 22. f4 {[%clk 0:02:09]}  Neg4 {[%clk 0:02:00]} 23. h3 {[%clk 0:02:00]}  Nxe3 {[%clk 0:01:57]} 24. Bxe3 {[%clk 0:01:57]}  Nh5 {[%clk 0:01:57]} 25. Kh2 {[%clk 0:01:47]}  Rab8 {[%clk 0:01:54]} 26. Qc1 {[%clk 0:01:47]}  Qd8 {[%clk 0:01:32]} 27. g4 {[%clk 0:01:15]}  Qh4 {[%clk 0:00:52]} 28. gxh5 {[%clk 0:01:12]}  Bc8 {[%clk 0:00:52]} 29. Ne4 {[%clk 0:00:50]}  Qxh3+ {[%clk 0:00:50]} 30. Kg1 {[%clk 0:00:49]}  Bxb2 {[%clk 0:00:43]} 31. Qd2 {[%clk 0:00:44]}  Bf5 {[%clk 0:00:33]} 32. Nxd6 {[%clk 0:00:18]}  Bxc2 {[%clk 0:00:32]} 33. Nxe8 {[%clk 0:00:06]}  Be4 {[%clk 0:00:31]} 34. Qh2 {[%clk 0:00:03]}  Qg4+ {[%clk 0:00:31]} 35. Kf2 {[%clk 0:00:03]}  Bxa1 {[%clk 0:00:21]} 36. Bc1 {[%clk 0:00:02]}  Bd4+ {[%clk 0:00:20]} 37. Kf1 {[%clk 0:00:02]}  Bd3+ {[%clk 0:00:18]} 38. Re2 {[%clk 0:00:02]}  Rxe8 {[%clk 0:00:19]} 0-1


[Site "https://www.chess.com"]

[Event "Titled Tuesday Blitz September 14 2021"]
[White "Dobrov, Vladimir"]
[Black "Sviridov_Valery"]
[WhiteFideId "4136594"]
[WhiteElo "2614"]
[BlackElo "2961"]
[Result "0-1"]
[Round "08"]
[TimeControl "180+1"]
[Date "2021.09.15"]
[WhiteClock "0:00:06"]
[BlackClock "0:00:13"]

1. d4 {[%clk 0:03:00]}  g6 {[%clk 0:02:57]} 2. e4 {[%clk 0:02:58]}  Bg7 {[%clk 0:02:57]} 3. Nc3 {[%clk 0:02:58]}  d6 {[%clk 0:02:57]} 4. Bg5 {[%clk 0:02:58]}  a6 {[%clk 0:02:57]} 5. Qd2 {[%clk 0:02:56]}  b5 {[%clk 0:02:57]} 6. f4 {[%clk 0:02:57]}  Bb7 {[%clk 0:02:55]} 7. Nf3 {[%clk 0:02:57]}  Nd7 {[%clk 0:02:54]} 8. a4 {[%clk 0:02:50]}  b4 {[%clk 0:02:53]} 9. Nd5 {[%clk 0:02:50]}  a5 {[%clk 0:02:53]} 10. Bd3 {[%clk 0:02:45]}  Ngf6 {[%clk 0:02:50]} 11. Nxf6+ {[%clk 0:02:35]}  exf6 {[%clk 0:02:43]} 12. Bh4 {[%clk 0:02:35]}  O-O {[%clk 0:02:44]} 13. O-O {[%clk 0:02:34]}  Re8 {[%clk 0:02:42]} 14. Rae1 {[%clk 0:02:32]}  Nb6 {[%clk 0:02:33]} 15. b3 {[%clk 0:02:31]}  c5 {[%clk 0:02:32]} 16. f5 {[%clk 0:02:05]}  Qc7 {[%clk 0:02:29]} 17. dxc5 {[%clk 0:01:46]}  dxc5 {[%clk 0:02:07]} 18. Bg3 {[%clk 0:01:44]}  Qc8 {[%clk 0:02:07]} 19. fxg6 {[%clk 0:01:20]}  hxg6 {[%clk 0:02:08]} 20. Qf2 {[%clk 0:01:19]}  Re6 {[%clk 0:01:53]} 21. e5 {[%clk 0:01:19]}  c4 {[%clk 0:01:54]} 22. Nd4 {[%clk 0:00:51]}  f5 {[%clk 0:01:33]} 23. Nxe6 {[%clk 0:00:40]}  Qxe6 {[%clk 0:01:34]} 24. Be2 {[%clk 0:00:38]}  cxb3 {[%clk 0:01:06]} 25. cxb3 {[%clk 0:00:39]}  Rc8 {[%clk 0:01:06]} 26. Rc1 {[%clk 0:00:28]}  Nd5 {[%clk 0:01:03]} 27. Rxc8+ {[%clk 0:00:27]}  Qxc8 {[%clk 0:01:04]} 28. Bc4 {[%clk 0:00:27]}  Nc3 {[%clk 0:01:02]} 29. Re1 {[%clk 0:00:23]}  Ne4 {[%clk 0:01:01]} 30. Qd4 {[%clk 0:00:23]}  Bf8 {[%clk 0:01:01]} 31. Qd3 {[%clk 0:00:14]}  Bc5+ {[%clk 0:01:00]} 32. Kh1 {[%clk 0:00:15]}  Bf2 {[%clk 0:00:58]} 33. Rf1 {[%clk 0:00:12]}  Nxg3+ {[%clk 0:00:55]} 34. hxg3 {[%clk 0:00:13]}  Bc5 {[%clk 0:00:56]} 35. g4 {[%clk 0:00:12]}  Kg7 {[%clk 0:00:55]} 36. Qh3 {[%clk 0:00:12]}  Be4 {[%clk 0:00:51]} 37. gxf5 {[%clk 0:00:12]}  Bxf5 {[%clk 0:00:52]} 38. Qh4 {[%clk 0:00:12]}  Qf8 {[%clk 0:00:21]} 39. Qf6+ {[%clk 0:00:12]}  Kg8 {[%clk 0:00:21]} 40. Qh4 {[%clk 0:00:11]}  Be7 {[%clk 0:00:21]} 41. Qh2 {[%clk 0:00:11]}  Qc8 {[%clk 0:00:17]} 42. Qh6 {[%clk 0:00:09]}  Bf8 {[%clk 0:00:16]} 43. Qh4 {[%clk 0:00:09]}  Qe8 {[%clk 0:00:14]} 44. g4 {[%clk 0:00:09]}  Be4+ {[%clk 0:00:14]} 45. Kg1 {[%clk 0:00:08]}  Bc5+ {[%clk 0:00:13]} 46. Kh2 {[%clk 0:00:06]}  Qxe5+ {[%clk 0:00:13]} 47. Qg3 {[%clk 0:00:07]}  Qb2+ {[%clk 0:00:13]} 48. Kh3 {[%clk 0:00:07]}  Qh8+ {[%clk 0:00:12]} 49. Qh4 {[%clk 0:00:06]}  Bg2+ {[%clk 0:00:13]} 50. Kg3 {[%clk 0:00:06]}  Bd6+ {[%clk 0:00:12]} 51. Kxg2 {[%clk 0:00:06]}  Qxh4 {[%clk 0:00:13]} 0-1


[Site "https://www.chess.com"]

[Event "Titled Tuesday Blitz September 14 2021"]
[White "Hansen, Eric"]
[Black "Keymer, Vincent"]
[WhiteFideId "2606771"]
[BlackFideId "12940690"]
[WhiteElo "2568"]
[BlackElo "2524"]
[Result "0-1"]
[Round "08"]
[TimeControl "180+1"]
[Date "2021.09.15"]
[WhiteClock "0:00:01"]
[BlackClock "0:00:16"]

1. e4 {[%clk 0:03:00]}  c6 {[%clk 0:02:59]} 2. Nf3 {[%clk 0:03:00]}  d5 {[%clk 0:03:00]} 3. d3 {[%clk 0:03:01]}  dxe4 {[%clk 0:03:00]} 4. dxe4 {[%clk 0:03:02]}  Qxd1+ {[%clk 0:03:00]} 5. Kxd1 {[%clk 0:03:02]}  Nd7 {[%clk 0:03:01]} 6. Nfd2 {[%clk 0:02:52]}  f5 {[%clk 0:03:00]} 7. f3 {[%clk 0:02:48]}  Ngf6 {[%clk 0:02:43]} 8. Nc3 {[%clk 0:02:34]}  g6 {[%clk 0:02:30]} 9. exf5 {[%clk 0:02:27]}  gxf5 {[%clk 0:02:30]} 10. Nc4 {[%clk 0:02:28]}  Bg7 {[%clk 0:02:20]} 11. Be3 {[%clk 0:02:19]}  Nd5 {[%clk 0:02:16]} 12. Bd2 {[%clk 0:02:08]}  O-O {[%clk 0:02:14]} 13. Ke1 {[%clk 0:02:01]}  Nc5 {[%clk 0:02:03]} 14. Nd1 {[%clk 0:01:37]}  e5 {[%clk 0:01:53]} 15. c3 {[%clk 0:01:17]}  a5 {[%clk 0:01:33]} 16. Nde3 {[%clk 0:01:14]}  Be6 {[%clk 0:01:23]} 17. Rd1 {[%clk 0:00:41]}  f4 {[%clk 0:01:06]} 18. Nxd5 {[%clk 0:00:36]}  cxd5 {[%clk 0:01:04]} 19. Nb6 {[%clk 0:00:30]}  Rad8 {[%clk 0:01:03]} 20. b4 {[%clk 0:00:30]}  axb4 {[%clk 0:00:59]} 21. cxb4 {[%clk 0:00:31]}  Nd7 {[%clk 0:00:56]} 22. Nxd7 {[%clk 0:00:30]}  Bxd7 {[%clk 0:00:53]} 23. g3 {[%clk 0:00:23]}  Ba4 {[%clk 0:00:46]} 24. Rc1 {[%clk 0:00:23]}  fxg3 {[%clk 0:00:45]} 25. hxg3 {[%clk 0:00:24]}  Rxf3 {[%clk 0:00:45]} 26. Bg2 {[%clk 0:00:23]}  Rxg3 {[%clk 0:00:44]} 27. Kf2 {[%clk 0:00:17]}  Rg6 {[%clk 0:00:44]} 28. Bh3 {[%clk 0:00:14]}  e4 {[%clk 0:00:41]} 29. Rc7 {[%clk 0:00:07]}  d4 {[%clk 0:00:37]} 30. Ke1 {[%clk 0:00:04]}  e3 {[%clk 0:00:34]} 31. Bc1 {[%clk 0:00:04]}  Rf8 {[%clk 0:00:26]} 32. Bf1 {[%clk 0:00:02]}  Bc6 {[%clk 0:00:19]} 33. Bc4+ {[%clk 0:00:02]}  Kh8 {[%clk 0:00:19]} 34. Rf1 {[%clk 0:00:02]}  Rxf1+ {[%clk 0:00:19]} 35. Kxf1 {[%clk 0:00:03]}  h5 {[%clk 0:00:17]} 36. b5 {[%clk 0:00:02]}  Be4 {[%clk 0:00:17]} 37. Re7 {[%clk 0:00:02]}  Bf3 {[%clk 0:00:16]} 38. Re8+ {[%clk 0:00:02]}  Kh7 {[%clk 0:00:16]} 39. Bd3 {[%clk 0:00:02]}  Kh6 {[%clk 0:00:15]} 40. Bxg6 {[%clk 0:00:01]}  Kxg6 {[%clk 0:00:16]} 0-1


[Site "https://www.chess.com"]

[Event "Titled Tuesday Blitz September 14 2021"]
[White "Janaszak, Dawid"]
[Black "Timmermans, Mark"]
[WhiteFideId "1119206"]
[BlackFideId "1026399"]
[WhiteElo "2283"]
[BlackElo "2460"]
[Result "0-1"]
[Round "08"]
[TimeControl "180+1"]
[Date "2021.09.15"]
[WhiteClock "0:00:20"]
[BlackClock "0:01:06"]

1. e4 {[%clk 0:03:00]}  e5 {[%clk 0:02:59]} 2. Nf3 {[%clk 0:03:00]}  Nc6 {[%clk 0:02:59]} 3. d4 {[%clk 0:03:01]}  exd4 {[%clk 0:03:00]} 4. Nxd4 {[%clk 0:03:00]}  Nf6 {[%clk 0:03:01]} 5. Nxc6 {[%clk 0:03:00]}  bxc6 {[%clk 0:03:02]} 6. e5 {[%clk 0:03:00]}  Qe7 {[%clk 0:03:02]} 7. Qe2 {[%clk 0:03:00]}  Nd5 {[%clk 0:03:03]} 8. h4 {[%clk 0:03:01]}  f6 {[%clk 0:03:04]} 9. exf6 {[%clk 0:02:57]}  Qxe2+ {[%clk 0:03:02]} 10. Bxe2 {[%clk 0:02:58]}  Nxf6 {[%clk 0:03:03]} 11. Nd2 {[%clk 0:02:50]}  d5 {[%clk 0:02:56]} 12. Nb3 {[%clk 0:02:43]}  c5 {[%clk 0:02:52]} 13. Bg5 {[%clk 0:02:39]}  Bd6 {[%clk 0:02:48]} 14. O-O-O {[%clk 0:02:31]}  c6 {[%clk 0:02:40]} 15. Na5 {[%clk 0:02:16]}  Kd7 {[%clk 0:02:24]} 16. Bf3 {[%clk 0:01:50]}  Kc7 {[%clk 0:02:24]} 17. Rhe1 {[%clk 0:01:47]}  Bg4 {[%clk 0:02:19]} 18. Bxg4 {[%clk 0:01:36]}  Nxg4 {[%clk 0:02:20]} 19. f3 {[%clk 0:01:33]}  Ne5 {[%clk 0:02:06]} 20. Nb3 {[%clk 0:01:26]}  Kb6 {[%clk 0:01:55]} 21. Bd2 {[%clk 0:01:00]}  a5 {[%clk 0:01:48]} 22. a4 {[%clk 0:00:56]}  Nc4 {[%clk 0:01:47]} 23. Bc3 {[%clk 0:00:48]}  d4 {[%clk 0:01:45]} 24. Bd2 {[%clk 0:00:49]}  Rhe8 {[%clk 0:01:39]} 25. h5 {[%clk 0:00:46]}  Bg3 {[%clk 0:01:35]} 26. Rh1 {[%clk 0:00:37]}  Re2 {[%clk 0:01:29]} 27. h6 {[%clk 0:00:37]}  g6 {[%clk 0:01:23]} 28. Be1 {[%clk 0:00:34]}  Bf4+ {[%clk 0:01:22]} 29. Kb1 {[%clk 0:00:33]}  Rxg2 {[%clk 0:01:22]} 30. Bh4 {[%clk 0:00:29]}  g5 {[%clk 0:01:20]} 31. Be1 {[%clk 0:00:29]}  Re8 {[%clk 0:01:18]} 32. Nd2 {[%clk 0:00:20]}  Nxd2+ {[%clk 0:01:06]} 0-1


[Site "https://www.chess.com"]

[Event "Titled Tuesday Blitz September 14 2021"]
[White "Kobalia, Mikhail"]
[Black "Sarana, Alexey"]
[WhiteFideId "4119150"]
[BlackFideId "24133795"]
[WhiteElo "2626"]
[BlackElo "2671"]
[Result "0-1"]
[Round "08"]
[TimeControl "180+1"]
[Date "2021.09.15"]
[WhiteClock "0:00:01"]
[BlackClock "0:00:17"]

1. e4 {[%clk 0:03:00]}  c5 {[%clk 0:02:49]} 2. Nf3 {[%clk 0:03:00]}  d6 {[%clk 0:02:49]} 3. Bb5+ {[%clk 0:02:55]}  Bd7 {[%clk 0:02:50]} 4. Bxd7+ {[%clk 0:02:54]}  Nxd7 {[%clk 0:02:51]} 5. O-O {[%clk 0:02:53]}  e6 {[%clk 0:02:51]} 6. c3 {[%clk 0:02:53]}  Ngf6 {[%clk 0:02:51]} 7. Qe2 {[%clk 0:02:53]}  Be7 {[%clk 0:02:51]} 8. Rd1 {[%clk 0:02:53]}  O-O {[%clk 0:02:49]} 9. d4 {[%clk 0:02:53]}  cxd4 {[%clk 0:02:50]} 10. cxd4 {[%clk 0:02:53]}  d5 {[%clk 0:02:50]} 11. e5 {[%clk 0:02:53]}  Ne4 {[%clk 0:02:51]} 12. Ne1 {[%clk 0:02:54]}  f5 {[%clk 0:02:25]} 13. f3 {[%clk 0:02:53]}  Ng5 {[%clk 0:02:25]} 14. Nd3 {[%clk 0:02:52]}  Rc8 {[%clk 0:02:17]} 15. Be3 {[%clk 0:02:48]}  Nb6 {[%clk 0:02:16]} 16. Nc3 {[%clk 0:02:42]}  Nc4 {[%clk 0:02:15]} 17. Bf2 {[%clk 0:02:42]}  Nf7 {[%clk 0:02:14]} 18. Rac1 {[%clk 0:02:41]}  Qd7 {[%clk 0:02:08]} 19. b3 {[%clk 0:02:40]}  Na5 {[%clk 0:02:07]} 20. Nf4 {[%clk 0:02:29]}  Bg5 {[%clk 0:02:00]} 21. Be3 {[%clk 0:02:28]}  Bxf4 {[%clk 0:02:00]} 22. Bxf4 {[%clk 0:02:29]}  Nc6 {[%clk 0:01:59]} 23. Nb5 {[%clk 0:02:21]}  a6 {[%clk 0:01:52]} 24. Nd6 {[%clk 0:02:16]}  Rc7 {[%clk 0:01:52]} 25. Nxf5 {[%clk 0:02:07]}  Nfd8 {[%clk 0:01:43]} 26. Nh6+ {[%clk 0:01:53]}  Kh8 {[%clk 0:01:29]} 27. Qd2 {[%clk 0:01:46]}  gxh6 {[%clk 0:01:29]} 28. Bxh6 {[%clk 0:01:46]}  Rg8 {[%clk 0:01:29]} 29. Bg5 {[%clk 0:01:45]}  Rg6 {[%clk 0:01:10]} 30. Bf6+ {[%clk 0:01:45]}  Kg8 {[%clk 0:01:11]} 31. h4 {[%clk 0:01:39]}  h5 {[%clk 0:01:02]} 32. Rc3 {[%clk 0:01:32]}  Nf7 {[%clk 0:01:00]} 33. Kh2 {[%clk 0:01:10]}  Nh6 {[%clk 0:01:00]} 34. g4 {[%clk 0:01:09]}  hxg4 {[%clk 0:00:39]} 35. Rg1 {[%clk 0:00:55]}  Qh7 {[%clk 0:00:29]} 36. fxg4 {[%clk 0:00:47]}  Nxg4+ {[%clk 0:00:28]} 37. Kh3 {[%clk 0:00:47]}  Nxf6 {[%clk 0:00:21]} 38. Rxg6+ {[%clk 0:00:46]}  Qxg6 {[%clk 0:00:21]} 39. exf6 {[%clk 0:00:46]}  Qxf6 {[%clk 0:00:19]} 40. Qe2 {[%clk 0:00:02]}  Rg7 {[%clk 0:00:17]} 41. Rf3 {[%clk 0:00:01]}  Qg6 {[%clk 0:00:17]} 0-1


[Site "https://www.chess.com"]

[Event "Titled Tuesday Blitz September 14 2021"]
[White "Mikhailovsky, Vladimir"]
[Black "Barrionuevo, Pablo"]
[WhiteFideId "34105414"]
[BlackFideId "110566"]
[WhiteElo "2414"]
[BlackElo "2250"]
[Result "1-0"]
[Round "08"]
[TimeControl "180+1"]
[Date "2021.09.15"]
[WhiteClock "0:01:09"]
[BlackClock "0:01:32"]

1. e4 {[%clk 0:03:00]}  d6 {[%clk 0:02:59]} 2. d4 {[%clk 0:02:58]}  Nf6 {[%clk 0:03:00]} 3. Bd3 {[%clk 0:02:56]}  e5 {[%clk 0:02:59]} 4. c3 {[%clk 0:02:56]}  d5 {[%clk 0:03:00]} 5. dxe5 {[%clk 0:02:54]}  Nxe4 {[%clk 0:02:59]} 6. Nf3 {[%clk 0:02:52]}  Nc6 {[%clk 0:02:56]} 7. O-O {[%clk 0:02:51]}  Bg4 {[%clk 0:02:55]} 8. h3 {[%clk 0:02:45]}  Bh5 {[%clk 0:02:54]} 9. Bf4 {[%clk 0:02:43]}  Be7 {[%clk 0:02:47]} 10. Nbd2 {[%clk 0:02:43]}  Nxd2 {[%clk 0:02:42]} 11. Qxd2 {[%clk 0:02:43]}  Bxf3 {[%clk 0:02:28]} 12. gxf3 {[%clk 0:02:43]}  O-O {[%clk 0:02:24]} 13. Bg3 {[%clk 0:02:29]}  Bg5 {[%clk 0:02:22]} 14. f4 {[%clk 0:02:29]}  Nxe5 {[%clk 0:02:20]} 15. Bxh7+ {[%clk 0:01:43]}  Kxh7 {[%clk 0:02:21]} 16. Qc2+ {[%clk 0:01:40]}  Ng6 {[%clk 0:02:11]} 17. fxg5 {[%clk 0:01:39]}  Qxg5 {[%clk 0:02:12]} 18. Kh2 {[%clk 0:01:39]}  f5 {[%clk 0:02:08]} 19. Rg1 {[%clk 0:01:28]}  f4 {[%clk 0:01:58]} 20. Bh4 {[%clk 0:01:27]}  Qh5 {[%clk 0:01:56]} 21. Rg5 {[%clk 0:01:19]}  Qh6 {[%clk 0:01:55]} 22. Rag1 {[%clk 0:01:18]}  Rf6 {[%clk 0:01:56]} 23. R5g4 {[%clk 0:01:10]}  Re6 {[%clk 0:01:35]} 24. Bg5 {[%clk 0:01:10]}  Qh5 {[%clk 0:01:32]} 25. Rh4 {[%clk 0:01:09]} 1-0


[Site "https://www.chess.com"]

[Event "Titled Tuesday Blitz September 14 2021"]
[White "Nimrod_Veinberg"]
[Black "Baskin, Robert"]
[BlackFideId "24662402"]
[WhiteElo "2740"]
[BlackElo "2521"]
[Result "1-0"]
[Round "08"]
[TimeControl "180+1"]
[Date "2021.09.15"]
[WhiteClock "0:00:13"]
[BlackClock "0:00:01"]

1. d4 {[%clk 0:03:00]}  Nf6 {[%clk 0:02:59]} 2. Bf4 {[%clk 0:02:59]}  d5 {[%clk 0:02:53]} 3. Nf3 {[%clk 0:02:57]}  c5 {[%clk 0:02:53]} 4. e3 {[%clk 0:02:57]}  Nc6 {[%clk 0:02:53]} 5. Nbd2 {[%clk 0:02:56]}  Qb6 {[%clk 0:02:52]} 6. dxc5 {[%clk 0:02:56]}  Qxb2 {[%clk 0:02:52]} 7. Rb1 {[%clk 0:02:55]}  Qc3 {[%clk 0:02:52]} 8. Bb5 {[%clk 0:02:56]}  e6 {[%clk 0:02:51]} 9. O-O {[%clk 0:02:34]}  Be7 {[%clk 0:02:46]} 10. Ne5 {[%clk 0:02:34]}  Bd7 {[%clk 0:02:42]} 11. Nd3 {[%clk 0:02:34]}  O-O {[%clk 0:02:38]} 12. Bc7 {[%clk 0:02:33]}  b6 {[%clk 0:02:34]} 13. cxb6 {[%clk 0:02:34]}  axb6 {[%clk 0:02:31]} 14. a4 {[%clk 0:02:35]}  Qa5 {[%clk 0:02:19]} 15. c4 {[%clk 0:02:35]}  Rfc8 {[%clk 0:02:20]} 16. Bg3 {[%clk 0:02:32]}  Qa7 {[%clk 0:02:19]} 17. Bh4 {[%clk 0:02:31]}  Ne4 {[%clk 0:02:11]} 18. cxd5 {[%clk 0:02:11]}  exd5 {[%clk 0:01:47]} 19. Nxe4 {[%clk 0:02:00]}  dxe4 {[%clk 0:01:40]} 20. Bxe7 {[%clk 0:01:57]}  Nxe7 {[%clk 0:01:35]} 21. Nf4 {[%clk 0:01:57]}  Bxb5 {[%clk 0:01:31]} 22. axb5 {[%clk 0:01:58]}  Ng6 {[%clk 0:01:29]} 23. Nh5 {[%clk 0:01:52]}  Rd8 {[%clk 0:01:26]} 24. Qg4 {[%clk 0:01:51]}  Qe7 {[%clk 0:01:23]} 25. Ng3 {[%clk 0:01:50]}  Re8 {[%clk 0:01:10]} 26. Rfd1 {[%clk 0:01:48]}  Rad8 {[%clk 0:00:59]} 27. h3 {[%clk 0:01:48]}  Rxd1+ {[%clk 0:00:37]} 28. Rxd1 {[%clk 0:01:48]}  h6 {[%clk 0:00:37]} 29. Rd4 {[%clk 0:01:45]}  Qc5 {[%clk 0:00:36]} 30. Qd7 {[%clk 0:01:03]}  Re7 {[%clk 0:00:31]} 31. Qc6 {[%clk 0:01:00]}  Qxc6 {[%clk 0:00:24]} 32. bxc6 {[%clk 0:01:00]}  Ne5 {[%clk 0:00:20]} 33. Nf5 {[%clk 0:00:52]}  Rc7 {[%clk 0:00:18]} 34. Rxe4 {[%clk 0:00:41]}  Nd3 {[%clk 0:00:06]} 35. Re8+ {[%clk 0:00:26]}  Kh7 {[%clk 0:00:06]} 36. Ne7 {[%clk 0:00:21]}  Ne5 {[%clk 0:00:05]} 37. f4 {[%clk 0:00:14]}  Nxc6 {[%clk 0:00:04]} 38. Nd5 {[%clk 0:00:15]}  Rb7 {[%clk 0:00:04]} 39. Rc8 {[%clk 0:00:16]}  Ne7 {[%clk 0:00:03]} 40. Nxe7 {[%clk 0:00:15]}  Rxe7 {[%clk 0:00:04]} 41. Kf2 {[%clk 0:00:16]}  Rb7 {[%clk 0:00:04]} 42. Rc4 {[%clk 0:00:17]}  b5 {[%clk 0:00:05]} 43. Rb4 {[%clk 0:00:18]}  Kg6 {[%clk 0:00:04]} 44. g4 {[%clk 0:00:18]}  Kf6 {[%clk 0:00:05]} 45. e4 {[%clk 0:00:18]}  Ke6 {[%clk 0:00:05]} 46. Ke3 {[%clk 0:00:19]}  Kd6 {[%clk 0:00:05]} 47. Kd4 {[%clk 0:00:19]}  f6 {[%clk 0:00:05]} 48. h4 {[%clk 0:00:19]}  g5 {[%clk 0:00:05]} 49. hxg5 {[%clk 0:00:18]}  hxg5 {[%clk 0:00:05]} 50. f5 {[%clk 0:00:10]}  Rb8 {[%clk 0:00:05]} 51. e5+ {[%clk 0:00:10]}  fxe5+ {[%clk 0:00:05]} 52. Ke4 {[%clk 0:00:10]}  Rb7 {[%clk 0:00:05]} 53. Rb1 {[%clk 0:00:10]}  b4 {[%clk 0:00:02]} 54. Rd1+ {[%clk 0:00:11]}  Kc5 {[%clk 0:00:02]} 55. Kxe5 {[%clk 0:00:12]}  b3 {[%clk 0:00:02]} 56. Kf6 {[%clk 0:00:12]}  b2 {[%clk 0:00:03]} 57. Rb1 {[%clk 0:00:13]}  Kd4 {[%clk 0:00:02]} 58. Kxg5 {[%clk 0:00:14]}  Kc3 {[%clk 0:00:02]} 59. Kf6 {[%clk 0:00:13]}  Kd4 {[%clk 0:00:02]} 60. g5 {[%clk 0:00:13]}  Rb6+ {[%clk 0:00:03]} 61. Kg7 {[%clk 0:00:14]}  Ke5 {[%clk 0:00:03]} 62. f6 {[%clk 0:00:14]}  Kf5 {[%clk 0:00:01]} 63. f7 {[%clk 0:00:14]}  Rb7 {[%clk 0:00:01]} 64. Rxb2 {[%clk 0:00:13]} 1-0


[Site "https://www.chess.com"]